bitfinex-derivatives/quotes_ETHF0:USTF0_20240818
["timestamp","ask_amount","ask_price","bid_price","bid_amount"]
[1723941755321,4.38464,2622.8,2622.6,0.00571592]
[1723941755517,0.57184,2622.8,2622.6,0.00571592]
[1723941755713,0.3664,2623.0,2622.6,0.00571592]
[1723941755915,0.3664,2623.0,2622.7,3.9766108]
[1723941756228,0.3664,2623.0,2622.6,0.00571592]
[1723941757226,0.93818,2623.0,2622.7,4.11711187]
[1723941757425,0.3664,2623.0,2622.6,0.00571592]
[1723941758516,0.3664,2623.0,2622.7,4.02339673]
[1723941765420,0.00567845,2623.1,2622.7,9.86619673]
[1723941765726,0.00567845,2623.1,2622.8,0.57183]
[1723941766120,0.00567845,2623.1,2622.9,4.36125898]
[1723941766926,0.00567845,2623.1,2622.9,4.93305898]
[1723941767118,3.2078,2623.8,2623.0,7.0206]
[1723941767314,0.3659,2623.9,2623.4,2.635]
[1723941767513,4.09228521,2624.0,2623.7,0.57162]
[1723941767727,0.00428521,2624.0,2623.8,0.94421]
[1723941767929,0.00428521,2624.0,2623.8,0.44432363]
[1723941768126,0.00428521,2624.0,2623.8,0.3726]
[1723941768437,0.00428521,2624.0,2623.9,3.98382176]
[1723941768825,0.00428521,2624.0,2623.6,3.2078]
[1723941769329,0.00428521,2624.0,2623.7,4.3275714]
[1723941769728,0.00428521,2624.0,2623.8,0.5716]
[1723941770027,0.00428521,2624.0,2623.8,0.9135]
[1723941770528,0.00428521,2624.0,2623.8,0.3419]
[1723941772830,0.00428521,2624.0,2623.6,3.2078]
[1723941773329,0.00428521,2624.0,2623.7,4.25498063]
[1723941773925,0.57585521,2624.0,2623.5,0.3576]
[1723941774231,0.57585521,2624.0,2623.6,4.25444078]
[1723941774462,0.00428521,2624.0,2623.6,4.25444078]
[1723941774629,0.57585521,2624.0,2623.6,4.25444078]
[1723941774831,0.57585521,2624.0,2623.5,0.3576]
[1723941775032,0.57585521,2624.0,2623.3,0.3534]
[1723941775033,0.373,2623.9,2623.3,0.3534]
[1723941775231,0.373,2623.9,2623.3,0.92511]
[1723941775631,0.373,2623.9,2623.4,3.96525647]
[1723941776435,0.00428521,2624.0,2623.5,3.2078]
[1723941776736,0.00428521,2624.0,2623.5,5.8428]
[1723941776927,0.00428521,2624.0,2623.6,4.66175405]
[1723941777129,0.00428521,2624.0,2623.6,5.23339405]
[1723941777426,0.00428521,2624.0,2623.7,0.57163]
[1723941777737,0.00428521,2624.0,2623.8,4.04214365]
[1723941778125,0.00428521,2624.0,2623.8,4.61375365]
[1723941778331,0.00428521,2624.0,2623.8,4.41514365]
[1723941779332,0.00428521,2624.0,2623.8,7.62294365]
[1723941780037,0.00428521,2624.0,2623.9,0.57159]
[1723941780737,0.00428521,2624.0,2623.8,8.19454365]
[1723941780944,3.81548521,2624.0,2623.5,5.8428]
[1723941781237,0.3769,2623.9,2623.5,5.8428]
[1723941781439,0.3591,2623.8,2623.5,5.8428]
[1723941782237,0.3591,2623.8,2623.5,3.2078]
[1723941782936,0.3591,2623.8,2623.5,3.77947]
[1723941783741,0.3591,2623.8,2623.5,3.2078]
[1723941784734,0.93071,2623.8,2623.5,3.2078]
[1723941784942,0.93071,2623.8,2623.4,2.635]
[1723941785152,0.3591,2623.8,2623.4,2.635]
[1723941786147,0.3591,2623.8,2623.4,3.20669]
[1723941786336,0.57585521,2624.0,2623.4,3.20669]
[1723941786337,0.00428521,2624.0,2623.5,3.77947]
[1723941786943,0.00428521,2624.0,2623.7,3.20662]
[1723941787139,0.00428521,2624.0,2623.8,3.9454]
[1723941787343,0.00428521,2624.0,2623.8,4.3197]
[1723941790350,0.00428521,2624.0,2623.8,4.8913]
[1723941791848,0.00428521,2624.0,2623.9,0.57159]
[1723941793450,0.00428521,2624.0,2623.8,7.52629]
[1723941793655,0.00428521,2624.0,2623.8,6.9547]
[1723941794151,0.00428521,2624.0,2623.8,6.2171]
[1723941794551,0.00428521,2624.0,2623.8,3.5821]
[1723941794761,3.81548521,2624.0,2623.8,3.5821]
[1723941794945,0.3677,2623.9,2623.8,3.5821]
[1723941795444,4.1789,2623.9,2623.8,3.5821]
[1723941795670,4.1789,2623.9,2623.8,3.2078]
[1723941796151,0.3677,2623.9,2623.8,3.2078]
[1723941796354,4.1789,2623.9,2623.8,3.2078]
[1723941796555,4.1789,2623.9,2623.4,3.5853]
[1723941796556,7.3867,2623.9,2623.4,3.5853]
[1723941796747,3.5755,2623.9,2623.4,4.157]
[1723941797150,0.3677,2623.9,2623.4,4.157]
[1723941797353,0.3677,2623.9,2623.4,3.5853]
[1723941797652,0.3677,2623.9,2623.4,4.157]
[1723941798051,0.3677,2623.9,2623.5,0.57167]
[1723941799969,0.3677,2623.9,2623.4,3.5853]
[1723941800153,0.3677,2623.9,2623.4,4.15699]
[1723941800552,0.93929,2623.9,2623.4,3.5853]
[1723941801058,0.93929,2623.9,2623.0,3.2078]
[1723941801059,3.2078,2623.6,2623.0,3.2078]
[1723941801255,3.2078,2623.3,2622.9,2.635]
[1723941801455,0.3784,2623.2,2622.9,3.20679]
[1723941802156,0.3784,2623.2,2623.0,0.57178]
[1723941803055,4.088,2623.8,2623.1,3.2078]
[1723941803247,0.348,2623.7,2623.2,0.57173]
[1723941803558,0.348,2623.7,2623.2,3.56142]
[1723941804160,0.348,2623.7,2623.3,0.57172]
[1723941804360,0.348,2623.7,2623.2,3.56143]
[1723941804952,0.348,2623.7,2623.3,0.57172]
[1723941805647,0.348,2623.7,2623.2,2.9897]
[1723941805846,0.348,2623.7,2623.2,3.56143]
[1723941808151,0.348,2623.7,2623.2,6.76923]
[1723941810061,0.91963,2623.7,2623.2,6.1975]
[1723941810365,0.57166,2623.6,2623.2,3.5625]
[1723941810546,0.57168,2623.5,2622.9,4.20039713]
[1723941810748,0.3569,2623.4,2622.9,5.8428]
[1723941811055,0.7346,2623.4,2622.9,6.4146]
[1723941812153,0.7346,2623.4,2622.9,7.40819713]
[1723941812361,0.7346,2623.4,2622.9,6.83639713]
[1723941812560,0.7346,2623.4,2622.9,6.4146]
[1723941813058,0.7346,2623.4,2622.9,7.40819713]
[1723941813458,0.91964,2623.7,2623.0,0.57178]
[1723941813649,0.57171,2623.4,2622.9,2.635]
[1723941813855,0.57172,2623.3,2622.9,2.635]
[1723941814054,0.3471,2623.2,2622.9,2.635]
[1723941815563,0.3471,2623.2,2622.8,0.348]
[1723941815869,3.5549,2623.2,2622.8,0.348]
[1723941816059,7.3677,2623.2,2622.8,0.348]
[1723941816260,3.5549,2623.2,2622.8,0.348]
[1723941816468,0.3471,2623.2,2622.8,0.91982]
[1723941816668,0.3471,2623.2,2622.8,0.348]
[1723941817868,0.3571,2623.1,2622.8,0.348]
[1723941819363,0.3471,2623.2,2622.8,0.91983]
[1723941819969,0.3471,2623.2,2622.8,0.348]
[1723941820184,0.3471,2623.2,2622.9,3.7796]
[1723941820883,8.21598,2623.5,2622.9,3.7796]
[1723941821280,5.00818,2623.5,2622.9,3.7796]
[1723941821878,4.4365,2623.5,2622.9,3.7796]
[1723941822182,4.4365,2623.5,2622.9,3.77959]
[1723941823078,5.00818,2623.5,2622.9,3.77959]
[1723941824073,4.4365,2623.5,2623.0,0.57178]
[1723941824391,4.4365,2623.5,2622.9,3.7796]
[1723941824575,5.00818,2623.5,2622.9,3.7796]
[1723941824783,0.3494,2623.4,2622.9,3.7796]
[1723941826877,5.00818,2623.5,2622.9,3.7796]
[1723941827181,4.4365,2623.5,2622.9,3.7796]
[1723941828086,4.088,2623.5,2623.0,0.57178]
[1723941828384,4.088,2623.5,2623.1,0.738]
[1723941828780,4.088,2623.5,2623.2,0.3611]
[1723941828982,0.57168,2623.5,2623.2,0.3611]
[1723941829187,3.2078,2623.4,2623.2,0.3611]
[1723941829381,0.3584,2623.4,2623.2,0.3611]
[1723941829788,0.9301,2623.4,2623.2,0.3611]
[1723941830087,0.9301,2623.4,2623.3,1.098]
[1723941830681,0.57172,2623.3,2623.1,1.098]
[1723941830879,3.2078,2623.2,2623.1,1.098]
[1723941831280,7.0198,2623.2,2623.1,1.098]
[1723941831979,7.59154,2623.2,2623.1,1.098]
[1723941832174,7.59154,2623.2,2622.8,0.3611]
[1723941832175,0.57176,2623.1,2622.8,0.3611]
[1723941832380,0.94526,2623.1,2623.0,1.098]
[1723941833105,0.3735,2623.1,2623.0,1.098]
[1723941835982,3.2078,2623.2,2623.0,1.098]
[1723941836176,3.5548,2623.2,2623.1,1.098]
[1723941836692,7.3668,2623.2,2623.1,1.098]
[1723941837085,0.347,2623.2,2623.1,1.098]
[1723941838586,0.347,2623.2,2622.8,0.3611]
[1723941838587,4.73074,2623.2,2622.8,0.3611]
[1723941838789,3.5548,2623.2,2622.8,0.3611]
[1723941838990,3.5548,2623.2,2623.1,1.098]
[1723941839490,7.3668,2623.2,2623.1,1.098]
[1723941840087,4.159,2623.2,2623.1,1.098]
[1723941840606,9.73075,2623.2,2623.1,1.098]
[1723941841477,0.57177,2623.1,2622.9,1.098]
[1723941841880,4.9108,2623.0,2622.6,3.21351592]
[1723941842090,0.57183,2622.8,2622.6,1.10371592]
[1723941842315,0.3624,2622.9,2622.6,1.10371592]
[1723941842316,0.3695,2622.7,2622.6,1.10371592]
[1723941842984,0.3695,2622.7,2622.6,0.00571592]
[1723941843183,0.3695,2622.7,2622.6,1.10371592]
[1723941844418,0.3695,2622.7,2622.6,0.00571592]
[1723941844592,0.3695,2622.7,2622.6,1.10371592]
[1723941845183,0.57179,2623.0,2622.6,1.10371592]
[1723941845388,0.57179,2623.0,2622.8,1.098]
[1723941845788,1.28157,2623.1,2622.8,1.098]
[1723941845997,0.57178,2623.0,2622.8,1.098]
[1723941850294,0.57178,2623.0,2622.7,1.098]
[1723941850902,0.57178,2623.0,2622.8,0.3768]
[1723941851893,4.38461,2622.9,2622.8,0.3768]
[1723941852095,0.57181,2622.9,2622.7,1.098]
[1723941852402,4.38461,2622.9,2622.7,1.098]
[1723941852903,0.57183,2622.8,2622.7,1.098]
[1723941853103,4.38463,2622.8,2622.7,1.098]
[1723941853286,4.38463,2622.8,2622.6,1.10371592]
[1723941853490,0.7391,2622.7,2622.6,1.10371592]
[1723941854007,4.5519,2622.7,2622.6,1.10371592]
[1723941859297,5.12375,2622.7,2622.6,0.00571592]
[1723941864605,4.5519,2622.7,2622.6,0.00571592]
[1723941866100,3.8128,2622.7,2622.6,1.10371592]
[1723941867407,3.8128,2622.7,2622.6,0.00571592]
[1723941868895,4.38465,2622.7,2622.6,0.00571592]
[1723941869101,9.38465,2622.7,2622.6,0.00571592]
[1723941870098,4.38465,2622.7,2622.6,0.00571592]
[1723941872516,9.38465,2622.7,2622.6,0.00571592]
[1723941872802,9.38465,2622.7,2622.6,3.747e-05]
[1723941873110,9.38465,2622.7,2622.4,0.00319102]
[1723941873111,0.57189,2622.5,2622.4,0.00319102]
[1723941873410,4.87769,2622.5,2622.4,0.00319102]
[1723941873600,13.69129,2622.5,2622.4,0.00319102]
[1723941873909,14.04419,2622.5,2622.4,0.00319102]
[1723941875595,10.83639,2622.5,2622.4,0.00319102]
[1723941876002,11.20379,2622.5,2622.4,0.00319102]
[1723941877310,6.20379,2622.5,2622.4,0.00319102]
[1723941878111,5.279,2622.5,2622.4,0.00319102]
[1723941878310,5.85089,2622.5,2622.4,0.00319102]
[1723941883211,5.279,2622.5,2622.4,0.00319102]
[1723941884801,5.85089,2622.5,2622.4,0.00319102]
[1723941885115,9.05869,2622.5,2622.4,0.00319102]
[1723941885700,5.85089,2622.5,2622.4,0.00319102]
[1723941886210,5.279,2622.5,2622.4,0.00319102]
[1723941886606,5.85089,2622.5,2622.4,0.00319102]
[1723941886805,14.05869,2622.5,2622.4,0.00319102]
[1723941894215,9.05869,2622.5,2622.4,0.00319102]
[1723941898819,14.05869,2622.5,2622.4,0.00319102]
[1723941899023,17.05850647,2622.5,2622.4,0.00319102]
[1723941899211,17.24679418,2622.5,2622.4,0.00319102]
[1723941900318,14.24697771,2622.5,2622.4,0.00319102]
[1723941900932,17.24679418,2622.5,2622.4,0.00319102]
[1723941901121,14.24697771,2622.5,2622.4,0.00319102]
[1723941901626,7.96069,2622.5,2622.4,0.00319102]
[1723941901923,9.05869,2622.5,2622.4,0.00319102]
[1723941903923,14.05869,2622.5,2622.4,0.00319102]
[1723941906018,17.05850647,2622.5,2622.4,0.00319102]
[1723941906218,0.57194,2622.3,2622.2,0.00571592]
[1723941906521,1.66994,2622.3,2622.2,0.00571592]
[1723941906727,13.98332589,2622.3,2622.2,0.00571592]
[1723941906912,10.83684,2622.3,2622.2,0.00571592]
[1723941907312,10.83684,2622.3,2622.2,0.00976313]
[1723941908317,13.8311178,2622.3,2622.2,0.00976313]
[1723941908512,12.7331178,2622.3,2622.2,0.00976313]
[1723941908726,13.8311178,2622.3,2622.2,0.00976313]
[1723941909124,11.40878,2622.3,2622.2,3.13e-06]
[1723941910518,11.7078274,2622.3,2622.2,3.13e-06]
[1723941911117,14.70164373,2622.3,2622.2,3.13e-06]
[1723941912627,5.83684,2622.3,2622.2,3.13e-06]
[1723941913125,8.83065633,2622.3,2622.2,3.13e-06]
[1723941913337,5.83684,2622.3,2622.2,3.13e-06]
[1723941913628,8.83065633,2622.3,2622.2,3.13e-06]
[1723941913832,5.83684,2622.3,2622.2,3.13e-06]
[1723941914318,8.83065633,2622.3,2622.2,3.13e-06]
[1723941914719,13.83065633,2622.3,2622.2,3.13e-06]
[1723941917526,10.83684,2622.3,2622.2,3.13e-06]
[1723941917728,14.33662589,2622.3,2622.2,3.13e-06]
[1723941917926,10.83684,2622.3,2622.2,3.13e-06]
[1723941919138,11.40878,2622.3,2622.2,3.13e-06]
[1723941919642,0.5722,2621.1,2620.4,0.99359713]
[1723941919832,0.57221,2621.1,2620.9,0.3562]
[1723941920023,4.3058,2621.0,2620.9,0.3562]
[1723941920222,1.098,2621.0,2620.9,0.3562]
[1723941920533,1.098,2621.0,2620.9,0.35947456]
[1723941920534,1.10138227,2621.0,2620.9,0.35947456]
[1723941920722,0.00338227,2621.0,2620.9,4.17467456]
[1723941921828,1.10138227,2621.0,2620.9,4.17467456]
[1723941922331,1.10138227,2621.0,2620.9,0.35947456]
[1723941923531,4.30918227,2621.0,2620.9,0.35947456]
[1723941925341,4.88140227,2621.0,2620.9,0.35947456]
[1723941926131,4.30918227,2621.0,2620.9,0.35947456]
[1723941926328,4.88140227,2621.0,2620.9,0.35947456]
[1723941927439,4.30918227,2621.0,2620.9,0.35947456]
[1723941927835,4.88140227,2621.0,2620.9,0.35947456]
[1723941929433,8.69660227,2621.0,2620.9,0.00327456]
[1723941931627,3.21118227,2621.0,2620.9,0.00327456]
[1723941931824,1.10138227,2621.0,2620.9,0.00327456]
[1723941932645,1.67360227,2621.0,2620.9,0.00327456]
[1723941933624,0.00338227,2621.0,2620.9,0.00327456]
[1723941933834,0.00338227,2621.0,2620.9,3.81847456]
[1723941934034,1.10138227,2621.0,2620.9,3.81847456]
[1723941934740,1.10138227,2621.0,2620.9,0.00327456]
[1723941934940,1.10138227,2621.0,2620.9,3.81847456]
[1723941935146,1.10138227,2621.0,2620.9,0.35417456]
[1723941935438,8.69660227,2621.0,2620.9,0.35417456]
[1723941936137,1.67360227,2621.0,2620.9,0.35417456]
[1723941936942,0.00338227,2621.0,2620.9,4.16937456]
[1723941937140,1.10138227,2621.0,2620.9,0.35417456]
[1723941939342,8.69660227,2621.0,2620.9,0.00327456]
[1723941941339,4.88140227,2621.0,2620.9,0.00327456]
[1723941942640,8.69660227,2621.0,2620.9,0.00327456]
[1723941943245,13.69660227,2621.0,2620.9,0.00327456]
[1723941943553,8.69660227,2621.0,2620.9,0.00327456]
[1723941946455,13.69660227,2621.0,2620.9,0.00327456]
[1723941947744,8.69660227,2621.0,2620.9,0.00327456]
[1723941947956,9.04340227,2621.0,2620.9,0.00327456]
[1723941949056,5.22820227,2621.0,2620.9,0.00327456]
[1723941951145,9.04340227,2621.0,2620.9,0.00327456]
[1723941951345,14.04340227,2621.0,2620.9,0.00327456]
[1723941951953,0.57226,2620.8,2620.7,0.00571592]
[1723941952157,1.67026,2620.8,2620.7,0.00571592]
[1723941952453,5.48626,2620.8,2620.7,0.00571592]
[1723941952639,6.19306,2620.8,2620.7,0.00571592]
[1723941953047,6.19306,2620.8,2620.7,0.01022608]
[1723941953747,0.57235,2620.4,2620.2,0.375]
[1723941953948,1.4573,2620.3,2620.2,0.375]
[1723941954659,1.4573,2620.3,2620.2,0.37848292]
[1723941956342,4.6651,2620.3,2620.2,0.37848292]
[1723941957054,5.0296,2620.3,2620.2,0.37848292]
[1723941957750,4.6651,2620.3,2620.2,0.37848292]
[1723941957979,1.4573,2620.3,2620.2,0.37848292]
[1723941958361,1.098,2620.3,2620.2,0.37848292]
[1723941959753,1.67037,2620.3,2620.2,0.00348292]
[1723941960062,1.098,2620.3,2620.2,0.00348292]
[1723941960359,1.67037,2620.3,2620.2,0.00348292]
[1723941960563,5.24907,2620.3,2620.2,0.00348292]
[1723941961160,9.06587,2620.3,2620.2,0.00348292]
[1723941962464,5.24907,2620.3,2620.2,0.00348292]
[1723941963863,9.06587,2620.3,2620.2,0.00348292]
[1723941965351,5.24907,2620.3,2620.2,0.00348292]
[1723941965872,4.3058,2620.3,2620.2,0.00348292]
[1723941967862,3.2078,2620.3,2620.2,0.00348292]
[1723941968664,3.2078,2620.3,2620.2,8.82028292]
[1723941968963,2.638,2620.5,2620.2,8.82028292]
[1723941969158,2.638,2620.5,2620.3,4.5528]
[1723941969354,2.638,2620.5,2620.3,1.0917]
[1723941969868,2.638,2620.5,2620.3,4.9077]
[1723941970057,2.638,2620.5,2620.3,1.0917]
[1723941970260,2.638,2620.5,2620.3,4.9077]
[1723941970966,2.638,2620.5,2620.4,3.816]
[1723941972052,2.638,2620.5,2620.3,1.0917]
[1723941972459,3.21033,2620.5,2620.3,1.0917]
[1723941972665,0.57235,2620.4,2620.3,0.3549]
[1723941973380,3.58654,2620.5,2620.3,0.3549]
[1723941973777,0.57235,2620.4,2620.3,0.3549]
[1723941974267,3.0142,2620.5,2620.3,0.3549]
[1723941974268,3.58654,2620.5,2620.3,0.3549]
[1723941974966,0.57235,2620.4,2620.3,0.3549]
[1723941976765,0.57237,2620.3,2620.2,0.00348292]
[1723941976970,7.11627,2620.3,2620.2,0.00348292]
[1723941977167,10.93307,2620.3,2620.2,0.00348292]
[1723941979768,10.93307,2620.3,2620.0,0.00571592]
[1723941979769,0.57242,2620.1,2620.0,0.00571592]
[1723941980267,4.38922,2620.1,2620.0,0.00571592]
[1723941980572,4.38922,2620.1,2619.4,0.3629]
[1723941980573,2.638,2619.6,2619.4,0.3629]
[1723941981067,2.638,2619.6,2619.4,0.36597359]
[1723941981268,0.356,2619.5,2619.4,0.36597359]
[1723941981656,0.356,2619.5,2619.4,0.00307359]
[1723941982058,0.92855,2619.5,2619.4,0.00307359]
[1723941983170,0.92855,2619.5,2619.2,0.00571592]
[1723941983171,0.57257,2619.4,2619.2,0.00571592]
[1723941983471,5.8458,2619.3,2619.2,0.00571592]
[1723941984169,6.41839,2619.3,2619.2,0.00890251]
[1723941984363,3.21059,2619.3,2619.2,0.00890251]
[1723941984689,6.41839,2619.3,2619.2,0.00890251]
[1723941984973,2.638,2619.3,2619.2,0.00890251]
[1723941985275,5.8458,2619.3,2619.2,0.00890251]
[1723941985464,6.1971,2619.3,2619.2,0.00890251]
[1723941987373,6.76969,2619.3,2619.2,0.00890251]
[1723941987969,3.56189,2619.3,2619.2,0.00890251]
[1723941988394,6.76969,2619.3,2619.2,0.00890251]
[1723941989290,10.58729,2619.3,2619.2,0.00890251]
[1723941993682,15.58729,2619.3,2619.2,0.00890251]
[1723941995888,14.04929,2619.3,2619.2,0.00890251]
[1723941998078,14.36021632,2619.3,2619.2,0.00890251]
[1723941999086,9.36021632,2619.3,2619.2,0.00890251]
[1723942000989,3.2078,2619.3,2619.2,0.00890251]
[1723942001194,3.2078,2619.3,2619.2,3.82650251]
[1723942001195,4.3078,2619.3,2619.2,3.82650251]
[1723942001488,1.1,2619.3,2619.2,3.82650251]
[1723942003279,4.3078,2619.3,2619.2,3.82650251]
[1723942004194,3.2078,2619.3,2619.2,8.82650251]
[1723942004394,1.1,2619.4,2619.2,12.03430251]
[1723942004593,1.1,2619.4,2619.3,0.3669]
[1723942004911,0.00571592,2619.8,2619.3,4.1845]
[1723942004912,0.745,2619.5,2619.3,4.1845]
[1723942005094,1.1,2619.7,2619.4,3.8176]
[1723942005303,0.5224,2619.7,2619.5,3.2078]
[1723942005491,0.5224,2619.7,2619.5,7.0254]
[1723942005794,0.5224,2619.7,2619.6,3.8176]
[1723942005986,0.00571592,2619.8,2619.6,3.8176]
[1723942006187,0.00571592,2619.8,2619.7,3.8176]
[1723942006389,0.00571592,2619.8,2619.6,3.8176]
[1723942006791,2.639,2620.2,2619.7,3.8176]
[1723942006991,4.088,2620.4,2619.7,3.8176]
[1723942006992,4.088,2620.4,2619.8,3.2078]
[1723942007383,4.088,2620.4,2619.5,3.78034]
[1723942007588,4.46,2620.4,2619.5,3.78034]
[1723942007797,4.46,2620.4,2619.6,4.18773258]
[1723942007991,0.00571592,2620.2,2619.8,3.2078]
[1723942008491,0.00571592,2620.2,2619.9,3.8168]
[1723942008906,0.00571592,2620.2,2620.0,3.8168]
[1723942009091,0.00571592,2620.2,2619.6,3.8168]
[1723942009291,0.00571592,2620.2,2619.6,8.22272533]
[1723942009503,0.00571592,2620.2,2619.7,3.8168]
[1723942009797,0.00571592,2620.2,2619.6,8.22272533]
[1723942009989,0.00571592,2620.2,2619.6,8.59892533]
[1723942010193,0.00571592,2620.2,2619.7,3.8168]
[1723942010586,0.00571592,2620.2,2619.8,3.8168]
[1723942010905,0.00571592,2620.2,2619.7,3.8168]
[1723942011100,0.00571592,2620.2,2619.6,0.3762]
[1723942011101,0.57242,2620.1,2619.6,0.3762]
[1723942011287,6.23011592,2620.2,2619.6,0.3762]
[1723942011488,0.57247,2619.9,2619.6,0.3762]
[1723942011695,0.57247,2619.9,2619.6,4.193]
[1723942012394,0.3712,2619.8,2619.6,0.3762]
[1723942013401,3.78025,2620.0,2619.7,3.8176]
[1723942013585,3.9187,2620.1,2619.6,0.3762]
[1723942013790,4.49113,2620.1,2619.6,0.3762]
[1723942014989,3.9187,2620.1,2619.6,0.3762]
[1723942015401,4.49112,2620.1,2619.6,0.3762]
[1723942015902,3.9187,2620.1,2619.6,0.3762]
[1723942016303,4.49112,2620.1,2619.6,0.3762]
[1723942016693,3.9187,2620.1,2619.6,0.3762]
[1723942020101,3.5652,2620.1,2619.6,0.3762]
[1723942020500,3.02231592,2620.2,2619.6,4.193]
[1723942020703,2.64471592,2620.2,2619.7,3.8168]
[1723942021298,2.99261592,2620.2,2619.7,3.8168]
[1723942022702,2.99261592,2620.2,2619.6,0.3762]
[1723942026009,1.099,2619.7,2619.6,0.3762]
[1723942026405,1.099,2619.7,2619.6,4.1938]
[1723942026705,0.00571592,2620.2,2619.6,4.1938]
[1723942026900,1.099,2619.8,2619.7,3.2078]
[1723942027307,1.099,2619.8,2619.7,12.0246]
[1723942028899,0.00571592,2620.2,2619.7,12.0246]
[1723942029098,1.099,2620.0,2619.7,7.5971]
[1723942029503,1.099,2620.0,2619.8,3.8168]
[1723942029807,1.099,2620.1,2619.9,3.8168]
[1723942030115,1.099,2620.1,2620.0,3.2078]
[1723942030301,1.099,2620.1,2620.0,12.3697]
[1723942031800,1.099,2620.1,2620.0,9.1619]
[1723942032002,1.099,2620.1,2620.0,12.3697]
[1723942033505,1.099,2620.1,2620.0,7.3697]
[1723942035305,1.099,2620.1,2620.0,12.3697]
[1723942036412,0.37561592,2620.2,2620.0,12.3697]
[1723942036413,1.10471592,2620.2,2620.0,12.3697]
[1723942036608,1.10471592,2620.2,2620.1,3.8168]
[1723942045315,1.10471592,2620.2,2620.1,7.0246]
[1723942046024,1.10471592,2620.2,2620.1,12.0246]
[1723942046826,0.3616,2620.4,2620.1,9.3068]
[1723942047026,0.3616,2620.4,2620.2,3.8168]
[1723942047418,0.3616,2620.4,2620.3,3.816]
[1723942047620,0.3616,2620.4,2620.2,3.8168]
[1723942048020,0.3616,2620.4,2620.3,3.816]
[1723942048319,0.3616,2620.4,2620.2,3.8168]
[1723942048718,0.3616,2620.4,2620.3,3.816]
[1723942049032,0.3616,2620.4,2620.2,3.8168]
[1723942049630,0.3616,2620.4,2620.3,3.816]
[1723942050020,0.7303,2620.4,2620.3,3.816]
[1723942051528,1.8293,2620.4,2620.3,3.816]
[1723942060428,0.7303,2620.4,2620.3,3.816]
[1723942072341,0.7303,2620.4,2620.0,0.99359713]
[1723942072342,5.6453,2620.4,2620.0,0.99359713]
[1723942072542,5.6453,2620.4,2620.1,1.59533588]
[1723942072543,1.099,2620.2,2620.1,1.59533588]
[1723942072749,1.099,2620.2,2619.9,4.6981957]
[1723942072750,1.099,2620.2,2620.0,0.99359713]
[1723942073038,0.3784,2620.1,2620.0,0.99359713]
[1723942073241,0.3784,2620.1,2620.0,3.50380663]
[1723942073451,0.3784,2620.1,2620.0,3.50382234]
[1723942074041,2.04982,2620.1,2619.9,3.2078]
[1723942074230,0.7157,2620.0,2619.9,3.2078]
[1723942080152,0.7157,2620.0,2619.9,8.1236]
[1723942080352,0.7157,2620.0,2619.9,9.71910871]
[1723942080548,0.7157,2620.0,2619.9,8.62010871]
[1723942080750,1.8147,2620.0,2619.7,2.45769713]
[1723942080955,1.8147,2620.0,2619.9,3.2078]
[1723942083349,0.7157,2620.0,2619.9,7.0246]
[1723942083752,0.7157,2620.0,2619.9,7.403]
[1723942084557,0.7157,2620.0,2619.9,3.5862]
[1723942084857,1.099,2620.3,2619.9,8.502]
[1723942085044,1.099,2620.3,2619.9,5.67879713]
[1723942085254,1.099,2620.4,2620.2,3.2078]
[1723942085446,1.099,2620.4,2620.1,4.3068]
[1723942086958,1.099,2620.3,2620.1,4.3068]
[1723942087963,1.099,2620.3,2620.1,1.099]
[1723942088257,1.0736,2620.5,2620.2,1.67139]
[1723942088453,1.0736,2620.5,2620.3,0.94937]
[1723942088645,1.0736,2620.5,2620.3,0.377]
[1723942088844,1.0736,2620.5,2620.3,0.94936]
[1723942089043,1.0736,2620.5,2620.3,0.377]
[1723942091052,1.0736,2620.5,2620.4,3.2078]
[1723942098268,2.1726,2620.5,2620.4,3.2078]
[1723942099568,1.0736,2620.5,2620.4,3.2078]
[1723942101768,2.1726,2620.5,2620.1,4.20139713]
[1723942101963,1.099,2620.3,2620.1,3.2078]
[1723942102557,1.099,2620.3,2620.1,4.3068]
[1723942104470,1.099,2620.4,2620.1,4.3068]
[1723942105768,1.64594,2620.5,2620.2,1.099]
[1723942105769,1.0736,2620.5,2620.2,1.099]
[1723942105967,1.0736,2620.5,2620.2,1.4478]
[1723942106169,1.0736,2620.5,2620.3,1.099]
[1723942106368,1.0736,2620.5,2620.4,3.2078]
[1723942107066,1.0736,2620.5,2620.4,4.3068]
[1723942107067,0.7274,2620.5,2620.4,4.3068]
[1723942113579,0.7274,2620.5,2620.4,3.2078]
[1723942128795,0.7274,2620.5,2620.4,3.80931175]
[1723942129385,0.7274,2620.5,2620.4,4.80290888]
[1723942130290,0.7274,2620.5,2620.4,5.90184433]
[1723942131792,3.57141184,2621.0,2620.5,3.816]
[1723942131793,0.00338227,2621.0,2620.5,3.816]
[1723942131999,0.3531,2621.6,2620.9,4.3068]
[1723942132185,0.3531,2621.6,2621.5,5.30267469]
[1723942132490,0.3531,2621.6,2621.5,4.3068]
[1723942132693,0.3531,2621.6,2621.5,8.4745]
[1723942133197,0.35802406,2621.6,2621.5,8.4788432]
[1723942134620,0.00571592,2621.8,2621.6,0.57207]
[1723942134793,0.00571592,2621.8,2621.7,1.4524]
[1723942134989,0.00571592,2621.8,2621.7,5.2668]
[1723942135589,0.00999136,2621.8,2621.7,5.2668]
[1723942136000,0.00999136,2621.8,2621.7,4.9134]
[1723942139590,0.00999136,2621.8,2621.7,5.48547]
[1723942139995,0.00999136,2621.8,2621.7,10.48547]
[1723942140793,0.7213,2622.3,2621.7,9.9134]
[1723942141102,0.7213,2622.3,2622.2,4.3068]
[1723942141798,0.7252816,2622.3,2622.2,4.3068]
[1723942145900,0.0039816,2622.3,2622.2,4.3068]
[1723942147600,0.35536929,2622.7,2622.2,4.3068]